fUSD/lending_fUSD_20241224
["ID","MTS","AMOUNT","RATE_DAILY","PERIOD"]
[346518663,1735018260311,-500.0,0.00014793,2]
[346518664,1735018260321,-500.0,0.00014793,2]
[346518665,1735018260330,-500.0,0.00014793,2]
[346518666,1735018260339,-500.0,0.00014793,2]
[346518667,1735018260348,-1465.72,0.00014793,2]
[346518668,1735018260357,-500.0,0.00014793,2]
[346518669,1735018260366,-500.0,0.00014793,2]
[346518670,1735018260376,-500.0,0.00014793,2]
[346518671,1735018260385,-500.0,0.00014793,2]
[346518672,1735018260395,-500.0,0.00014793,2]
[346518673,1735018260407,-1465.24,0.00014793,2]
[346518674,1735018260416,-500.0,0.00014793,2]
[346518675,1735018260425,-500.0,0.00014793,2]
[346518676,1735018260434,-508.52833492,0.00014793,2]
[346518677,1735018260445,-2919.0,0.00014793,2]
[346518678,1735018260454,-500.0,0.00014793,2]
[346518679,1735018260463,-500.0,0.00014793,2]
[346518680,1735018260472,-2253.9,0.00014793,2]
[346518681,1735018260481,-3237.5,0.00014793,2]
[346518682,1735018260490,-500.0,0.00014793,2]
[346518683,1735018260501,-413.41571742,0.00014793,2]
[346518684,1735018260510,-500.0,0.00014793,2]
[346518685,1735018260519,-554.59,0.00014793,2]
[346518686,1735018260528,-500.0,0.00014793,2]
[346518687,1735018260537,-794.47,0.00014793,2]
[346518688,1735018260546,-500.0,0.00014793,2]
[346518689,1735018260555,-500.0,0.00014793,2]
[346518690,1735018260565,-500.0,0.00014793,2]
[346518691,1735018260574,-935.63,0.00014793,2]
[346518692,1735018260583,-500.0,0.00014793,2]
[346518693,1735018260592,-500.0,0.00014793,2]
[346518694,1735018260602,-2816.14,0.00014793,2]
[346518695,1735018260611,-153.49182692,0.00014793,2]
[346518696,1735018260620,-500.0,0.00014793,2]
[346518697,1735018260629,-500.0,0.00014793,2]
[346518698,1735018260639,-500.0,0.00014793,2]
[346518699,1735018260649,-500.0,0.00014793,2]
[346518700,1735018260658,-955.57,0.00014793,2]
[346518701,1735018260667,-500.0,0.00014793,2]
[346518702,1735018260676,-500.0,0.00014793,2]
[346518703,1735018260685,-500.0,0.00014793,2]
[346518704,1735018260695,-500.0,0.00014793,2]
[346518705,1735018260705,-500.0,0.00014793,2]
[346518706,1735018260714,-500.0,0.00014793,2]
[346518707,1735018260723,-908.11,0.00014793,2]
[346518708,1735018260732,-500.0,0.00014793,2]
[346518709,1735018260741,-500.0,0.00014793,2]
[346518710,1735018260751,-500.0,0.00014793,2]
[346518711,1735018260760,-500.0,0.00014793,2]
[346518712,1735018260769,-500.0,0.00014793,2]
[346518713,1735018260778,-1028.08,0.00014793,2]
[346518714,1735018260787,-568.18,0.00014793,2]
[346518715,1735018260796,-500.0,0.00014793,2]
[346518716,1735018260805,-500.0,0.00014793,2]
[346518717,1735018260814,-683.69,0.00014793,2]
[346518718,1735018260824,-500.0,0.00014793,2]
[346518719,1735018260833,-500.0,0.00014793,2]
[346518720,1735018260842,-500.0,0.00014793,2]
[346518721,1735018260851,-500.0,0.00014793,2]
[346518722,1735018260861,-1115.82,0.00014793,2]
[346518723,1735018260870,-722.75,0.00014793,2]
[346518724,1735018260879,-500.0,0.00014793,2]
[346518725,1735018260888,-500.0,0.00014793,2]
[346518726,1735018260897,-1499.78,0.00014793,2]
[346518727,1735018260907,-500.0,0.00014793,2]
[346518728,1735018260915,-500.0,0.00014793,2]
[346518729,1735018260924,-500.0,0.00014793,2]
[346518730,1735018260933,-1265.66,0.00014793,2]
[346518731,1735018260944,-500.0,0.00014793,2]
[346518732,1735018260953,-500.0,0.00014793,2]
[346518733,1735018260962,-1225.19,0.00014793,2]
[346518734,1735018260971,-7745.3,0.00014793,2]
[346518735,1735018260980,-500.0,0.00014793,2]
[346518736,1735018260990,-500.0,0.00014793,2]
[346518737,1735018260999,-500.0,0.00014793,2]
[346518738,1735018261009,-954.82,0.00014793,2]
[346518739,1735018261018,-500.0,0.00014793,2]
[346518740,1735018261027,-500.0,0.00014793,2]
[346518741,1735018261037,-500.0,0.00014793,2]
[346518742,1735018261046,-500.0,0.00014794,2]
[346518743,1735018261056,-504.78953664,0.00014794,2]
[346518744,1735018261065,-500.0,0.00014794,2]
[346518745,1735018261074,-500.0,0.00014794,2]
[346518746,1735018261083,-500.0,0.00014794,2]
[346518747,1735018261093,-500.0,0.00014794,2]
[346518748,1735018261103,-405.74811696,0.00014794,2]
[346518749,1735018261112,-500.0,0.00014794,2]
[346518750,1735018261121,-500.0,0.00014794,2]
[346518751,1735018261130,-500.0,0.00014794,2]
[346518752,1735018261143,-302.8,0.00014794,2]
[346518753,1735018261152,-161.91503575,0.00014794,2]
[346518754,1735018261161,-184.84127159,0.00014794,2]
[346518755,1735018261171,-500.0,0.00014794,2]
[346518756,1735018261183,-500.0,0.00014794,2]
[346518757,1735018261193,-500.0,0.00014794,2]
[346518758,1735018261202,-500.0,0.00014794,2]
[346518759,1735018261211,-500.0,0.00014794,2]
[346518760,1735018261220,-500.0,0.00014794,2]
[346518761,1735018261229,-500.0,0.00014794,2]
[346518762,1735018261237,-546.3,0.00014794,2]
[346518763,1735018261246,-500.0,0.00014794,2]
[346518764,1735018261255,-658.36,0.00014794,2]
[346518765,1735018261264,-500.0,0.00014794,2]
[346518766,1735018261273,-500.0,0.00014794,2]
[346518767,1735018261282,-500.0,0.00014794,2]
[346518768,1735018261291,-500.0,0.00014794,2]
[346518769,1735018261300,-680.9,0.00014794,2]
[346518770,1735018261309,-500.0,0.00014794,2]
[346518771,1735018261318,-500.0,0.00014794,2]
[346518772,1735018261327,-500.0,0.00014794,2]
[346518773,1735018261336,-501.62,0.00014794,2]
[346518774,1735018261345,-586.12,0.00014794,2]
[346518775,1735018261354,-500.0,0.00014794,2]
[346518776,1735018261363,-500.0,0.00014794,2]
[346518777,1735018261371,-500.0,0.00014794,2]
[346518778,1735018261380,-500.0,0.00014794,2]
[346518779,1735018261389,-500.0,0.00014794,2]
[346518780,1735018261398,-500.0,0.00014794,2]
[346518781,1735018261407,-500.0,0.00014794,2]
[346518782,1735018261417,-500.0,0.00014794,2]
[346518783,1735018261425,-500.71,0.00014794,2]
[346518784,1735018261434,-582.46,0.00014794,2]
[346518785,1735018261444,-500.0,0.00014794,2]
[346518786,1735018261453,-500.0,0.00014794,2]
[346518787,1735018261463,-500.0,0.00014794,2]
[346518788,1735018261472,-500.0,0.00014794,2]
[346518789,1735018261481,-500.0,0.00014794,2]
[346518790,1735018261490,-584.84,0.00014794,2]
[346518791,1735018261498,-500.0,0.00014794,2]
[346518792,1735018261507,-667.98,0.00014794,2]
[346518793,1735018261516,-309.98452657,0.00014794,2]
[346518794,1735018261525,-500.0,0.00014794,2]
[346518795,1735018261534,-500.0,0.00014794,2]
[346518796,1735018261543,-500.0,0.00014794,2]
[346518797,1735018261552,-500.0,0.00014794,2]
[346518798,1735018261561,-500.0,0.00014794,2]
[346518799,1735018261570,-500.0,0.00014794,2]
[346518800,1735018261579,-500.0,0.00014794,2]
[346518801,1735018261588,-500.0,0.00014794,2]
[346518802,1735018261598,-711.57,0.00014794,2]
[346518803,1735018261608,-500.0,0.00014794,2]
[346518804,1735018261618,-500.0,0.00014794,2]
[346518805,1735018261627,-500.0,0.00014794,2]
[346518806,1735018261636,-897.7,0.00014794,2]
[346518807,1735018261646,-500.0,0.00014794,2]
[346518808,1735018261655,-500.0,0.00014794,2]
[346518809,1735018261664,-500.0,0.00014794,2]
[346518810,1735018261673,-368.72808812,0.00014794,2]
[346518811,1735018261682,-500.0,0.00014794,2]
[346518812,1735018261693,-500.0,0.00014794,2]
[346518813,1735018261702,-560.63,0.00014794,2]
[346518814,1735018261711,-668.01,0.00014794,2]
[346518815,1735018261720,-500.0,0.00014794,2]
[346518816,1735018261729,-500.0,0.00014794,2]
[346518817,1735018261738,-557.47,0.00014794,2]
[346518818,1735018261747,-500.0,0.00014794,2]
[346518819,1735018261756,-500.0,0.00014794,2]
[346518820,1735018261765,-383.597552,0.00014794,2]
[346518821,1735018261774,-500.0,0.00014794,2]
[346518822,1735018261783,-500.0,0.00014794,2]
[346518823,1735018261792,-555.168296,0.00014794,2]
[346518824,1735018261801,-500.0,0.00014794,2]
[346518825,1735018261810,-500.0,0.00014794,2]
[346518826,1735018261819,-500.0,0.00014794,2]
[346518827,1735018261828,-500.0,0.00014794,2]
[346518828,1735018261837,-500.0,0.00014794,2]
[346518829,1735018261846,-946.68,0.00014794,2]
[346518830,1735018261855,-500.0,0.00014794,2]
[346518831,1735018261864,-500.0,0.00014794,2]
[346518832,1735018261873,-500.0,0.00014794,2]
[346518833,1735018261883,-500.0,0.00014794,2]
[346518834,1735018261892,-500.0,0.00014794,2]
[346518835,1735018261901,-500.0,0.00014794,2]
[346518836,1735018261910,-500.0,0.00014794,2]
[346518837,1735018261919,-500.0,0.00014794,2]
[346518838,1735018261928,-592.9,0.00014794,2]
[346518839,1735018261937,-547.28,0.00014794,2]
[346518840,1735018261949,-598.2,0.00014794,2]
[346518841,1735018261958,-520.01,0.00014794,2]
[346518842,1735018261966,-500.0,0.00014794,2]
[346518843,1735018261975,-506.66,0.00014794,2]
[346518844,1735018261985,-500.0,0.00014794,2]
[346518845,1735018261994,-500.0,0.00014794,2]
[346518846,1735018262003,-500.0,0.00014794,2]
[346518847,1735018262012,-662.17,0.00014794,2]
[346518848,1735018262021,-500.0,0.00014794,2]
[346518849,1735018262030,-500.0,0.00014794,2]
[346518850,1735018262040,-500.0,0.00014794,2]
[346518851,1735018262050,-696.48,0.00014794,2]
[346518852,1735018262059,-500.0,0.00014794,2]
[346518853,1735018262068,-500.0,0.00014794,2]
[346518854,1735018262077,-518.6,0.00014794,2]
[346518855,1735018262087,-500.0,0.00014794,2]
[346518856,1735018262096,-500.0,0.00014794,2]
[346518857,1735018262106,-1152.77,0.00014794,2]
[346518858,1735018262115,-500.0,0.00014794,2]
[346518859,1735018262124,-500.0,0.00014794,2]
[346518860,1735018262133,-500.0,0.00014794,2]
[346518861,1735018262145,-586.32,0.00014794,2]
[346518862,1735018262154,-725.31,0.00014794,2]
[346518863,1735018262163,-500.0,0.00014794,2]
[346518864,1735018262172,-500.0,0.00014794,2]
[346518865,1735018262181,-846.78,0.00014794,2]
[346518866,1735018262191,-500.0,0.00014794,2]
[346518867,1735018262200,-500.0,0.00014794,2]
[346518868,1735018262209,-500.0,0.00014794,2]
[346518869,1735018262219,-547.95,0.00014794,2]
[346518870,1735018262227,-796.84,0.00014794,2]
[346518871,1735018262236,-713.44,0.00014794,2]
[346518872,1735018262246,-523.75,0.00014794,2]
[346518873,1735018262255,-500.0,0.00014794,2]
[346518874,1735018262264,-500.0,0.00014794,2]
[346518875,1735018262274,-500.0,0.00014794,2]
[346518876,1735018262283,-500.0,0.00014794,2]
[346518877,1735018262293,-500.0,0.00014794,2]
[346518878,1735018262302,-500.0,0.00014794,2]
[346518879,1735018262312,-500.0,0.00014794,2]
[346518880,1735018262321,-5016.22,0.00014794,2]
[346518881,1735018262330,-1638.06,0.00014794,2]
[346518882,1735018262339,-500.0,0.00014794,2]
[346518883,1735018262348,-551.44,0.00014794,2]
[346518884,1735018262357,-1164.78,0.00014794,2]
[346518885,1735018262367,-500.0,0.00014794,2]
[346518886,1735018262376,-500.0,0.00014794,2]
[346518887,1735018262385,-782.49,0.00014794,2]
[346518888,1735018262395,-1583.85,0.00014794,2]
[346518889,1735018262406,-500.0,0.00014794,2]
[346518890,1735018262415,-901.71,0.00014794,2]
[346518891,1735018262424,-500.0,0.00014794,2]
[346518892,1735018262433,-1977.81,0.00014794,2]
[346518893,1735018262443,-500.0,0.00014794,2]
[346518894,1735018262453,-509.19,0.00014794,2]
[346518895,1735018262462,-500.0,0.00014794,2]
[346518896,1735018262471,-500.0,0.00014794,2]
[346518897,1735018262480,-500.0,0.00014794,2]
[346518898,1735018262489,-500.0,0.00014794,2]
[346518899,1735018262498,-500.0,0.00014794,2]
[346518900,1735018262507,-792.79,0.00014794,2]
[346518901,1735018262516,-849.68,0.00014794,2]
[346518902,1735018262525,-2088.9,0.00014794,2]
[346518903,1735018262534,-500.0,0.00014794,2]
[346518904,1735018262543,-2055.88,0.00014794,2]
[346518905,1735018262552,-500.0,0.00014794,2]
[346518906,1735018262561,-7677.04,0.00014794,2]
[346518907,1735018262570,-543.48,0.00014794,2]
[346518908,1735018262579,-854.97,0.00014794,2]
[346518909,1735018262588,-1395.53,0.00014794,2]
[346518910,1735018262597,-500.0,0.00014794,2]
[346518911,1735018262606,-500.0,0.00014794,2]
[346518912,1735018262615,-500.0,0.00014794,2]
[346518913,1735018262624,-1385.02,0.00014794,2]
[346518914,1735018262633,-500.0,0.00014794,2]
[346518915,1735018262642,-3679.71,0.00014794,2]
[346518916,1735018262652,-500.0,0.00014794,2]
[346518917,1735018262664,-1080.57,0.00014794,2]
[346518918,1735018262673,-500.0,0.00014794,2]
[346518919,1735018262683,-1694.03,0.00014794,2]
[346518920,1735018262691,-500.0,0.00014794,2]
[346518921,1735018262700,-500.0,0.00014794,2]
[346518922,1735018262709,-505.35,0.00014794,2]
[346518923,1735018262718,-1117.85,0.00014794,2]
[346518924,1735018262727,-705.9,0.00014794,2]
[346518925,1735018262736,-1539.8,0.00014794,2]
[346518926,1735018262744,-500.0,0.00014794,2]
[346518927,1735018262753,-2249.94,0.00014794,2]
[346518928,1735018262763,-500.0,0.00014794,2]
[346518929,1735018262772,-500.0,0.00014794,2]
[346518930,1735018262782,-500.0,0.00014794,2]
[346518931,1735018262791,-3833.98,0.00014794,2]
[346518932,1735018262800,-500.0,0.00014794,2]
[346518933,1735018262810,-508.99,0.00014794,2]
[346518934,1735018262819,-500.0,0.00014794,2]
[346518935,1735018262828,-937.66,0.00014794,2]
[346518936,1735018262837,-195.5870935,0.00014794,2]
[346518937,1735018262846,-500.0,0.00014794,2]
[346518938,1735018262855,-500.0,0.00014794,2]
[346518939,1735018262864,-2551.89,0.00014794,2]
[346518940,1735018262873,-586.98,0.00014794,2]
[346518941,1735018262882,-1335.36,0.00014794,2]
[346518942,1735018262892,-500.0,0.00014794,2]
[346518943,1735018262902,-3168.41,0.00014794,2]
[346518944,1735018262912,-1369.41,0.00014794,2]
[346518945,1735018262921,-500.0,0.00014794,2]
[346518946,1735018262931,-500.0,0.00014794,2]
[346518947,1735018262941,-575.13,0.00014794,2]
[346518948,1735018262950,-845.43,0.00014794,2]
[346518949,1735018262959,-500.0,0.00014794,2]
[346518950,1735018262968,-500.0,0.00014794,2]
[346518951,1735018262977,-887.19,0.00014794,2]
[346518952,1735018262986,-500.0,0.00014794,2]
[346518953,1735018262995,-547.48,0.00014794,2]
[346518954,1735018263004,-500.0,0.00014794,2]
[346518955,1735018263014,-716.51,0.00014794,2]
[346518956,1735018263023,-561.45,0.00014794,2]
[346518957,1735018263034,-500.0,0.00014794,2]
[346518958,1735018263043,-500.0,0.00014794,2]
[346518959,1735018263053,-558.02,0.00014794,2]
[346518960,1735018263063,-500.0,0.00014794,2]
[346518961,1735018263073,-500.0,0.00014794,2]
[346518962,1735018263084,-1000.0,0.00014794,2]
[346518963,1735018263093,-500.0,0.00014794,2]
[346518964,1735018263103,-500.0,0.00014794,2]
[346518965,1735018263114,-973.2,0.00014794,2]
[346518966,1735018263123,-3656.76,0.00014794,2]
[346518967,1735018263133,-500.0,0.00014794,2]
[346518968,1735018263147,-997.53,0.00014794,2]
[346518969,1735018263157,-855.77,0.00014794,2]
[346518970,1735018263168,-693.49,0.00014794,2]
[346518971,1735018263179,-500.0,0.00014794,2]
[346518972,1735018263188,-637.35,0.00014794,2]
[346518973,1735018263199,-1739.36,0.00014794,2]
[346518974,1735018263209,-500.0,0.00014794,2]
[346518975,1735018263219,-500.0,0.00014794,2]
[346518976,1735018263229,-705.36,0.00014794,2]
[346518977,1735018263240,-500.0,0.00014794,2]
[346518978,1735018263249,-500.0,0.00014794,2]
[346518979,1735018263259,-1543.65,0.00014794,2]
[346518980,1735018263268,-500.0,0.00014794,2]
[346518981,1735018263278,-820.97,0.00014794,2]
[346518982,1735018263288,-1819.38,0.00014794,2]
[346518983,1735018263298,-500.0,0.00014794,2]
[346518984,1735018263307,-4120.74,0.00014794,2]
[346518985,1735018263317,-910.57,0.00014794,2]
[346518986,1735018263327,-989.44,0.00014794,2]
[346518987,1735018263336,-2961.05,0.00014794,2]
[346518988,1735018263347,-500.0,0.00014794,2]
[346518989,1735018263356,-513.08608611,0.00014794,2]
[346518990,1735018263366,-503.58,0.00014794,2]
[346518991,1735018263376,-903.8,0.00014794,2]
[346518992,1735018263386,-596.96,0.00014794,2]
[346518993,1735018263397,-807.94,0.00014794,2]
[346518994,1735018263407,-1456.76,0.00014794,2]
[346518995,1735018263419,-500.0,0.00014794,2]
[346518996,1735018263429,-2643.91,0.00014794,2]
[346518997,1735018263442,-1308.53,0.00014794,2]
[346518998,1735018263452,-794.16,0.00014794,2]
[346518999,1735018263566,-1213.29,0.00014794,2]
[346519000,1735018263580,-1676.79,0.00014794,2]
[346519001,1735018263590,-500.0,0.00014794,2]
[346519002,1735018263600,-500.0,0.00014794,2]
[346519003,1735018263611,-5281.26,0.00014794,2]
[346519004,1735018263622,-1433.69,0.00014794,2]
[346519005,1735018263632,-500.0,0.00014794,2]
[346519006,1735018263642,-677.19,0.00014794,2]
[346519007,1735018263652,-500.0,0.00014794,2]
[346519008,1735018263663,-1372.29,0.00014794,2]
[346519009,1735018263678,-1023.69,0.00014794,2]
[346519010,1735018263687,-500.0,0.00014794,2]
[346519011,1735018263700,-680.17,0.00014794,2]
[346519012,1735018263710,-552.15,0.00014794,2]
[346519013,1735018263720,-705.72,0.00014794,2]
[346519014,1735018263730,-500.0,0.00014794,2]
[346519015,1735018263740,-674.8,0.00014794,2]
[346519016,1735018263750,-4867.25,0.00014794,2]
[346519017,1735018263760,-3213.6,0.00014794,2]
[346519018,1735018263770,-854.26,0.00014794,2]
[346519019,1735018263779,-500.0,0.00014794,2]
[346519020,1735018263792,-1660.69,0.00014794,2]
[346519021,1735018263802,-500.0,0.00014794,2]
[346519022,1735018263812,-548.87,0.00014794,2]
[346519023,1735018263823,-826.14,0.00014794,2]
[346519024,1735018263833,-500.0,0.00014794,2]
[346519025,1735018263843,-14771.78,0.00014794,2]
[346519026,1735018263853,-619.38,0.00014794,2]
[346519027,1735018263863,-3293.16,0.00014794,2]
[346519028,1735018263873,-500.0,0.00014794,2]
[346519029,1735018263884,-500.0,0.00014794,2]
[346519030,1735018263894,-500.0,0.00014794,2]
[346519031,1735018263905,-500.0,0.00014794,2]
[346519032,1735018263917,-527.97,0.00014794,2]
[346519033,1735018263927,-500.0,0.00014794,2]
[346519034,1735018263938,-500.0,0.00014794,2]
[346519035,1735018263949,-500.0,0.00014794,2]
[346519036,1735018263959,-1071.77,0.00014794,2]
[346519037,1735018263969,-500.0,0.00014794,2]
[346519038,1735018263978,-500.0,0.00014794,2]
[346519039,1735018263989,-1627.96297763,0.00014877,2]
[346519040,1735018263998,-1899.0,0.00014931,2]
[346519041,1735018264012,-818.0,0.00014931,2]
[346519042,1735018264023,-3771.0,0.00014931,2]
[346519043,1735018264032,-924.0,0.00014931,2]
[346519044,1735018264042,-1256.0,0.00014931,2]
[346519045,1735018264052,-3683.0,0.00014931,2]
[346519046,1735018264062,-536.0,0.00014931,2]
[346519047,1735018264071,-317.45,0.00014931,2]
[346519048,1735018264081,-2011.0,0.00014931,2]
[346519049,1735018264091,-1265.0,0.00014931,2]
[346519050,1735018264101,-1293.819,0.00014931,2]
[346519051,1735018264111,-635.0,0.00014931,2]
[346519052,1735018264121,-150.0,0.00014931,2]
[346519053,1735018264131,-1504.0,0.00014932,2]
[346519054,1735018264145,-500.0,0.00015,2]
[346519055,1735018264155,-1000.0,0.00015012,2]
[346519056,1735018264164,-150.0,0.00015016,2]
[346519057,1735018264174,-150.0,0.00015016,2]
[346519058,1735018264184,-150.0,0.00015016,2]
[346519059,1735018264196,-150.0,0.00015016,2]
[346519060,1735018264206,-150.82688537,0.00015016,2]
[346519061,1735018264217,-150.9196073,0.00015016,2]
[346519062,1735018264227,-150.0,0.00015016,2]
[346519063,1735018264238,-150.0,0.00015016,2]
[346519064,1735018264248,-262.76811998,0.00015024,2]
[346519065,1735018264259,-2075.88434638,0.00015033,2]
[346519066,1735018264270,-150.0,0.0001504,2]
[346519067,1735018264281,-150.0,0.00015051,2]
[346519068,1735018264292,-150.0,0.00015064,2]
[346519069,1735018264302,-553.36804499,0.00015067,2]
[346519070,1735018264314,-500.0,0.00015067,2]
[346519071,1735018264324,-500.0,0.00015067,2]
[346519072,1735018264335,-500.0,0.00015067,2]
[346519073,1735018264346,-500.0,0.00015067,2]
[346519074,1735018264356,-500.0,0.00015067,2]
[346519075,1735018264366,-500.0,0.00015067,2]
[346519076,1735018264377,-500.0,0.00015067,2]
[346519077,1735018264386,-500.0,0.00015067,2]
[346519078,1735018264396,-500.0,0.00015067,2]
[346519079,1735018264406,-500.0,0.00015067,2]
[346519080,1735018264416,-500.0,0.00015067,2]
[346519081,1735018264425,-500.0,0.00015067,2]
[346519082,1735018264435,-500.0,0.00015067,2]
[346519083,1735018264445,-500.0,0.00015067,2]
[346519084,1735018264454,-500.0,0.00015067,2]
[346519085,1735018264464,-500.0,0.00015067,2]
[346519086,1735018264473,-500.0,0.00015067,2]
[346519087,1735018264482,-535.15,0.00015067,2]
[346519088,1735018264492,-500.0,0.00015067,2]
[346519089,1735018264502,-500.0,0.00015067,2]
[346519090,1735018264511,-500.0,0.00015067,2]
[346519091,1735018264520,-609.1,0.00015067,2]
[346519092,1735018264530,-500.0,0.00015067,2]
[346519093,1735018264539,-500.0,0.00015067,2]
[346519094,1735018264549,-500.0,0.00015067,2]
[346519095,1735018264558,-500.0,0.00015067,2]
[346519096,1735018264568,-500.0,0.00015067,2]
[346519097,1735018264577,-500.0,0.00015067,2]
[346519098,1735018264587,-500.0,0.00015067,2]
[346519099,1735018264596,-500.0,0.00015067,2]
[346519100,1735018264606,-500.0,0.00015067,2]
[346519101,1735018264615,-500.0,0.00015067,2]
[346519102,1735018264625,-500.0,0.00015067,2]
[346519103,1735018264635,-500.0,0.00015067,2]
[346519104,1735018264645,-500.0,0.00015067,2]
[346519105,1735018264655,-500.0,0.00015067,2]
[346519106,1735018264664,-500.0,0.00015067,2]
[346519107,1735018264674,-500.0,0.00015067,2]
[346519108,1735018264683,-500.0,0.00015067,2]
[346519109,1735018264694,-500.0,0.00015067,2]
[346519110,1735018264704,-500.0,0.00015067,2]
[346519111,1735018264714,-500.0,0.00015067,2]
[346519112,1735018264724,-531.69921683,0.00015067,2]
[346519113,1735018264733,-500.0,0.00015067,2]
[346519114,1735018264743,-500.0,0.00015067,2]
[346519115,1735018264752,-500.0,0.00015067,2]
[346519116,1735018264762,-370.55061132,0.00015067,2]
[346519117,1735018264772,-500.0,0.00015067,2]
[346519118,1735018264782,-500.0,0.00015067,2]
[346519119,1735018264792,-500.0,0.00015067,2]
[346519120,1735018264802,-500.0,0.00015067,2]
[346519121,1735018264811,-500.0,0.00015067,2]
[346519122,1735018264821,-500.0,0.00015067,2]
[346519123,1735018264831,-500.0,0.00015067,2]
[346519124,1735018264840,-500.0,0.00015067,2]
[346519125,1735018264850,-500.0,0.00015067,2]
[346519126,1735018264860,-500.0,0.00015067,2]
[346519127,1735018264869,-500.0,0.00015067,2]
[346519128,1735018264879,-500.0,0.00015067,2]
[346519129,1735018264889,-500.0,0.00015067,2]
[346519130,1735018264899,-500.0,0.00015067,2]
[346519131,1735018264909,-500.0,0.00015067,2]
[346519132,1735018264918,-500.0,0.00015067,2]
[346519133,1735018264928,-500.0,0.00015067,2]
[346519134,1735018264938,-500.0,0.00015067,2]
[346519135,1735018264949,-500.0,0.00015067,2]
[346519136,1735018264959,-500.0,0.00015067,2]
[346519137,1735018264969,-500.0,0.00015067,2]
[346519138,1735018264979,-1508.76,0.00015067,2]
[346519139,1735018264989,-500.0,0.00015067,2]
[346519140,1735018264999,-500.0,0.00015067,2]
[346519141,1735018265008,-500.0,0.00015067,2]
[346519142,1735018265018,-500.0,0.00015067,2]
[346519143,1735018265028,-500.0,0.00015067,2]
[346519144,1735018265038,-500.0,0.00015067,2]
[346519145,1735018265047,-500.0,0.00015067,2]
[346519146,1735018265057,-1465.72,0.00015067,2]
[346519147,1735018265067,-500.0,0.00015067,2]
[346519148,1735018265076,-500.0,0.00015067,2]
[346519149,1735018265086,-500.0,0.00015067,2]
[346519150,1735018265096,-500.0,0.00015067,2]
[346519151,1735018265106,-500.0,0.00015067,2]
[346519152,1735018265117,-1465.24,0.00015067,2]
[346519153,1735018265126,-500.0,0.00015067,2]
[346519154,1735018265137,-500.0,0.00015067,2]
[346519155,1735018265148,-2919.0,0.00015067,2]
[346519156,1735018265158,-500.0,0.00015067,2]
[346519157,1735018265168,-500.0,0.00015067,2]
[346519158,1735018265178,-2253.9,0.00015067,2]
[346519159,1735018265187,-3237.5,0.00015067,2]
[346519160,1735018265199,-507.65362626,0.00015067,2]
[346519161,1735018265209,-500.0,0.00015067,2]
[346519162,1735018265219,-554.59,0.00015067,2]